Cogmind - Beta 9.3 @@@ ROGUE MODE // 2020.01.05 @ 16:43:51 // Winter2019/RPGLIKE Player: SpiritFryer Result: Destroyed by as-53637 with Assembled Focal Cannon Performance ------------- Evolutions (3) 1500 Regions Visited (12) 2400 Robots Destroyed (420) 2100 Value Destroyed (12406) 12406 Prototype IDs (47) 940 Alien Tech Used (0) 0 Bonus (5264) 5264 TOTAL SCORE: 24610 Bonus ------- High Alert Combat Kills 5230 Follower Combat Kills 231 Met Imprinter 300 Friendly Fire -497 Cogmind --------- Core Integrity 0/850 Matter 65/350 Energy 1150/1150 System Corruption 0% Temperature Cool (6) Movement Flying (32) Location -7/Deep Caves Parts ------- > --- POWER (1) -------- Micro Nuclear Core > --- PROPULSION (2) --- Improved Cesium-ion Thruster Cooled VTOL Module > --- UTILITY (8) ------ Zionite Biocell Experimental Signal Interpreter Improved Melee Analysis Suite Improved Melee Analysis Suite Nanoactuators Improved Maneuvering Thrusters Advanced Hacking Suite Makeshift System Shield > --- WEAPON (5) ------- Zionite Laser-S Heavy Missile Launcher Molecular Deconstructor Lance > --- INVENTORY (4) ---- System Restoration Module Bore Cannon Greatsword Peak State ------------ > --- POWER ------------ Micro Nuclear Core > --- PROPULSION ------- Improved Cesium-ion Thruster Cooled VTOL Module > --- UTILITY ---------- Zionite Biocell Experimental Signal Interpreter Improved Melee Analysis Suite Improved Melee Analysis Suite Nanoactuators Improved Maneuvering Thrusters Advanced Hacking Suite Makeshift System Shield > --- WEAPON ----------- Bore Cannon Molecular Deconstructor Lance Lance > --- INVENTORY -------- System Restoration Module Heavy Missile Launcher Greatsword [Rating: 92] Favorites ----------- Power Micro Nuclear Core Engine Cooled Ion Engine Power Core Micro Nuclear Core Reactor Zionite Light DM Reactor Propulsion Cesium-ion Thruster Treads Heavy Treads Leg Improved Carbon-fiber Leg Wheel Compact Wheel Hover Unit Makeshift Hover Unit Flight Unit Cesium-ion Thruster Utility Improved Melee Analysis Suite Device Maneuvering Thrusters Storage Zionite Biocell Processor Improved Melee Analysis Suite Hackware Hacking Suite Protection Improved Core Shielding Weapon Lance Energy Gun Zionite Laser-S Energy Cannon Beam Cannon Ballistic Gun Assault Rifle Ballistic Cannon Bore Cannon Launcher Heavy Missile Launcher Special Weapon Molecular Deconstructor Impact Weapon Flail Slashing Weapon Greatsword Piercing Weapon Lance Build | -11 -10 -10 -10 -9 -8 -7 -7 -7 -7 -7 -7 -7 ------- Run | Scr Mat Min Exi Min Mat Fac Was Fac Low Low Zio Dee Slots Evolved 12 | . . . . 1 8 2 . 1 . . . . Power . | . . . . . . . . . . . . . Propulsion 1 | . . . . . . 1 . . . . . . Utility 7 | . . . . 1 6 . . . . . . . Weapon 4 | . . . . . 2 1 . 1 . . . . Parts Attached 356 | 6 10 . . 10 45 116 26 69 7 17 31 19 Power 19 | 1 2 . . 1 4 3 . 4 . . 2 2 Engine 6 | 1 . . . 1 1 . . 2 . . 1 . Core 12 | . 2 . . . 3 3 . 2 . . 1 1 Reactor 1 | . . . . . . . . . . . . 1 Propulsion 35 | 1 2 . . 2 1 13 3 5 2 . 3 3 Treads 2 | . . . . . . . 1 . 1 . . . Leg 2 | . . . . . . 2 . . . . . . Wheel 2 | 1 . . . . . 1 . . . . . . Hover 4 | . . . . . . 1 . 1 . . 1 1 Flight 25 | . 2 . . 2 1 9 2 4 1 . 2 2 Utility 148 | 1 2 . . 1 15 62 12 28 . 7 13 7 Device 101 | . . . . . 6 48 11 21 . 6 5 4 Storage 3 | . . . . . . 2 . . . . . 1 Processor 26 | 1 2 . . 1 7 8 . 2 . . 5 . Hackware 8 | . . . . . 2 1 . 2 . . 3 . Protection 10 | . . . . . . 3 1 3 . 1 . 2 Artifact . | . . . . . . . . . . . . . Weapon 154 | 3 4 . . 6 25 38 11 32 5 10 13 7 Energy Gun 8 | 1 . . . . . 2 2 1 . . 1 1 Energy Cannon 5 | . 1 . . . . 2 1 1 . . . . Ballistic Gun 7 | 2 . . . . . 1 1 2 . 1 . . Ballistic Cannon 31 | . . . . 1 4 12 2 8 2 1 1 . Launcher 35 | . . . . 4 12 7 . 5 1 2 2 2 Special Weapon 4 | . . . . . . . . . . 1 2 1 Impact Weapon 5 | . . . . . 3 . . 1 . 1 . . Slashing Weapon 18 | . 3 . . 1 6 4 . 1 . . 2 1 Piercing Weapon 41 | . . . . . . 10 5 13 2 4 5 2 Special Melee Weapon . | . . . . . . . . . . . . . Unidentified Prototypes 10 | . . . . . 1 1 . . . 1 . 7 Parts Lost . | . . . . . . . . . . . . . Power . | . . . . . . . . . . . . . Propulsion . | . . . . . . . . . . . . . Utility . | . . . . . . . . . . . . . Weapon . | . . . . . . . . . . . . . Highest Loss Streak . | . . . . . . . . . . . . . Average Slot Usage (%) 95 | . 99 100 100 96 98 93 96 99 93 90 89 92 Engine 1 | . 8 . . 9 2 . . . . . . . Core 8 | . 16 25 25 11 7 6 6 6 6 6 5 6 Flight 13 | . 18 25 25 21 9 11 13 12 12 12 11 11 Device 7 | . . . . . 2 7 14 13 12 11 11 11 Processor 27 | . 25 25 25 31 37 33 22 19 18 18 18 18 Hackware 13 | . . . . . 17 13 13 18 18 18 18 13 Ballistic Cannon 3 | . . . . 3 8 3 . . . . 2 3 Launcher 3 | . . . . 16 4 1 . . . 2 3 4 Slashing Weapon 5 | . 23 25 25 1 5 5 . . 6 6 5 2 Piercing Weapon 8 | . . . . . . 7 24 24 17 9 5 7 Naked Turns . | . . . . . . . . . . . . . Heaviest Build 33 | 7 8 7 7 16 23 27 22 29 28 28 29 33 Greatest Support 35 | 21 21 14 14 20 26 31 31 33 33 33 35 33 Greatest Overweight (x) 1 | . . . . . 1 1 . . . . 1 1 Average Overweight (x) . | . . . . . . . . . . . . . Largest Inventory Capacity 4 | 1 1 1 1 2 2 3 3 4 4 4 4 4 Average Capacity 2 | . 1 1 1 1 2 2 3 3 4 4 4 4 Most Carried 4 | 1 1 1 1 2 2 3 3 4 4 4 4 4 Average Carried 2 | . . 1 1 1 1 2 3 3 4 3 3 3 Final Capacity 4 | 1 1 1 1 2 2 3 3 4 4 4 4 4 Final Carried 4 | 1 1 1 1 2 2 3 3 4 4 4 4 4 Class Distribution -------------------- 60% | Wizard-Scout 34% | Hacker-Scout 5% | Hacker-Mutant Dominant Class ---------------- Hacker-Mutant | -10/Materials Hacker-Scout | -10/Mines Hacker-Scout | -10/Exiles Hacker-Scout | -9/Mines Hacker-Scout | -8/Materials Wizard-Scout | -7/Factory Wizard-Scout | -7/Waste Wizard-Scout | -7/Factory Wizard-Scout | -7/Lower Caves Wizard-Scout | -7/Lower Caves Wizard-Scout | -7/Zion Wizard-Scout | -7/Deep Caves Resources | -11 -10 -10 -10 -9 -8 -7 -7 -7 -7 -7 -7 -7 ----------- Run | Scr Mat Min Exi Min Mat Fac Was Fac Low Low Zio Dee Matter Collected 8158 | 263 100 . . 706 2417 1929 268 1001 147 397 618 312 Remotely . | . . . . . . . . . . . . . Salvage Created 14236 | 164 729 187 . 541 5292 2923 . 2287 589 572 640 312 Parts 801 | 11 48 10 . 41 246 156 . 148 33 29 54 25 Haulers Intercepted 15 | . 2 . . . 6 3 . 4 . . . . Recyclers Shooed 8 | . . 1 . 1 4 2 . . . . . . Parts Field Recycled . | . . . . . . . . . . . . . Retrieved Matter . | . . . . . . . . . . . . . Parts Self-Destructed 73 | . . . . . . . . . 30 43 . . Prevented . | . . . . . . . . . . . . . Kills | -11 -10 -10 -10 -9 -8 -7 -7 -7 -7 -7 -7 -7 ------- Run | Scr Mat Min Exi Min Mat Fac Was Fac Low Low Zio Dee Combat Hostiles Destroyed 279 | . 11 . . 22 88 56 . 51 16 14 8 13 Melee 150 | . 11 . . 2 29 37 . 39 13 9 7 3 Guns 1 | . . . . . . . . . . . . 1 Cannons 45 | . . . . 1 30 7 . 3 . 2 . 2 AOE 73 | . . . . 19 25 12 . 9 3 . . 5 Classes Destroyed 22 | 2 7 . . 2 5 1 . . 1 1 2 1 Worker 20 | . 3 3 . 3 9 2 . . . . . . Builder 17 | . 2 1 . 6 4 3 . 1 . . . . Tunneler 7 | 4 . . . 1 2 . . . . . . . Hauler 15 | . 2 . . . 6 3 . 4 . . . . Recycler 28 | 1 2 1 . 7 13 3 . 1 . . . . Mechanic 5 | . . . . . 5 . . . . . . . Operator 5 | . 1 . . . 2 2 . . . . . . Watcher 22 | . 3 . . . 4 8 . 7 . . . . Swarmer 67 | . 5 . . 8 11 12 . 18 9 4 . . Grunt 99 | . 6 . . 2 49 21 . 14 4 3 . . Brawler 12 | . . . . . 8 1 . 2 . 1 . . Duelist 9 | . . . . . 5 3 . 1 . . . . Protector 8 | . . . . . 6 2 . . . . . . Sentry 33 | . . . . 1 8 10 . 12 1 1 . . Specialist 2 | . . . . . . . . . . 2 . . Hunter 8 | . . . . . 1 3 . 2 1 1 . . Programmer 7 | . . . . . . 4 . 2 . 1 . . Behemoth 2 | . . . . . . . . . 1 1 . . Zionite 17 | . . . . . . . . . . . 17 . Z-Technician 5 | . . . . . . . . . . . . 5 Z-Light 6 | . . . . . . . . . . . . 6 Assembled 18 | . . . . 11 . . . . . . . 7 Butcher 1 | . . . . . . . . . . . 1 . Mutant 5 | . . . . . . . . . . . 5 . Best Kill Streak 13 | 5 4 2 . 13 12 5 . 6 6 3 9 5 Combat Bots Only 9 | . 4 . . 4 9 4 . 5 6 3 4 3 Max Kills in Single Turn 4 | 1 1 1 . 3 4 2 . 2 3 1 1 3 Gunslinging . | . . . . . . . . . . . . . Exploded 4 | . . . . 3 4 2 . 2 3 . . 3 Melee 2 | . 1 . . 1 1 1 . 1 2 1 1 1 Uniques/NPCs Destroyed 2 | . . . . . . . . . . . 2 . Imprinter (-7/Zion) 1C-UTU (-7/Zion) Combat | -11 -10 -10 -10 -9 -8 -7 -7 -7 -7 -7 -7 -7 -------- Run | Scr Mat Min Exi Min Mat Fac Was Fac Low Low Zio Dee Damage Taken 8750 | . 612 . . 248 2035 1872 . 872 549 738 592 1232 Core 7341 | . 543 . . 224 1734 1530 . 737 465 591 475 1042 Absorbed by Shields 5 | . . . . . . 5 . . . . . . Redirected to Core 4849 | . 221 . . 72 1034 1134 . 456 301 518 399 714 Core Remaining (%) 99 | 100 . . . 100 98 . . . . . . . Volleys Fired 654 | 26 . . . 63 288 100 . 37 10 34 41 55 Largest 2 | 1 . . . 1 2 1 . 1 1 1 1 2 Hottest 90 | 50 . . . 57 90 57 . 57 57 57 57 60 Shots Fired 662 | 26 . . . 63 296 97 . 37 10 34 41 58 Gun 30 | 26 . . . . . . . . . . . 4 Cannon 473 | . . . . 8 243 83 . 29 9 24 36 41 Launcher 136 | . . . . 55 53 14 . 8 1 1 . 4 Special 23 | . . . . . . . . . . 9 5 9 Kinetic 474 | 1 . . . 8 243 83 . 29 9 24 36 41 Thermal 29 | 25 . . . . . . . . . . . 4 Explosive 92 | . . . . 55 9 14 . 8 1 1 . 4 Electromagnetic 44 | . . . . . 44 . . . . . . . Robot Hit Streak 11 | 7 . . . 6 9 8 . 3 11 7 8 4 Robot Miss Streak 9 | 4 . . . 4 9 6 . 6 1 2 2 5 Penetration Max 2 | . . . . . 1 1 . 2 . 1 1 1 Secondary Targets . | . . . . . . . . . . . . . Shots Hit Robots 793 | 18 55 9 . 27 264 153 . 100 43 41 58 25 Core Hits 532 | 6 25 5 . 59 172 116 . 71 18 13 28 19 Critical Hits 140 | . . . . 3 68 28 . 11 4 3 15 8 Critical Kills 55 | . . . . 2 29 7 . 4 1 1 8 3 Critical Parts Destroyed 73 | . . . . . 35 19 . 6 1 2 7 3 Melee Attacks 824 | . 91 12 . 8 166 231 19 162 49 28 39 19 Impact 39 | . . . . . 39 . . . . . . . Slashing 421 | . 91 12 . 8 127 159 . . 5 8 10 1 Piercing 364 | . . . . . . 72 19 162 44 20 29 18 Sneak Attacks 86 | . 17 8 . 2 27 8 . 17 . 2 2 3 Combat Hostiles 16 | . 1 . . . 1 2 . 10 . 2 . . Follow-up Attacks 41 | . . . . . . 7 . 19 11 1 3 . Damage Inflicted 42821 | 238 2155 599 . 2516 12888 9632 . 7409 2186 1541 2110 1547 Guns 295 | 238 . . . . . . . . . . . 57 Cannons 5015 | . . . . 66 2633 929 . 347 94 201 478 267 Explosions 9112 | . . . . 2205 3570 1781 . 891 306 . . 359 Melee 28399 | . 2155 599 . 245 6685 6922 . 6171 1786 1340 1632 864 Ramming . | . . . . . . . . . . . . . Kinetic 5015 | . . . . 66 2633 929 . 347 94 201 478 267 Thermal 1166 | 238 . . . . 790 . . 81 . . . 57 Explosive 6082 | . . . . 2205 806 1596 . 810 306 . . 359 Electromagnetic 2159 | . . . . . 1974 185 . . . . . . Impact 1083 | . . . . . 1083 . . . . . . . Slashing 14586 | . 2155 599 . 245 5602 5394 . . 120 415 56 . Piercing 12730 | . . . . . . 1528 . 6171 1666 925 1576 864 Highest Corruption 4 | . . . . . . 4 . 2 . 1 . . Average Corruption 2 | . . . . . . 2 . 1 . 1 . . Corruption Purged 7 | . . . . . . 4 . 2 . 1 . . Effects 36 | . . . . . . 32 . 4 . . . . Message Errors 13 | . . . . . . 10 . 3 . . . . Matter Fused 2 | . . . . . . 2 . . . . . . Heat Flow Errors 3 | . . . . . . 3 . . . . . . Energy Discharges 6 | . . . . . . 6 . . . . . . Data Loss (minor) 4 | . . . . . . 4 . . . . . . Targeting Errors 5 | . . . . . . 4 . 1 . . . . Weapon Failures 3 | . . . . . . 3 . . . . . . Overload Shots . | . . . . . . . . . . . . . Overflow Damage 4081 | . 276 119 . 184 1417 1069 . 524 129 12 110 241 Projectiles . | . . . . . . . . . . . . . Explosions 491 | . . . . 133 138 138 . 30 52 . . . Melee 3590 | . 276 119 . 51 1279 931 . 494 77 12 110 241 Knockbacks 26 | . . . . . 12 7 . . . 1 5 1 Impact 1 | . . . . . 1 . . . . . . . Kinetic 25 | . . . . . 11 7 . . . 1 5 1 Secondary . | . . . . . . . . . . . . . Self-Inflicted Damage 298 | . . . . 105 117 22 . 38 . . . 16 Shots 12 | . . . . 4 5 1 . 1 . . . 1 Rammed . | . . . . . . . . . . . . . Targets Rammed . | . . . . . . . . . . . . . Kicked . | . . . . . . . . . . . . . Crushed . | . . . . . . . . . . . . . Highest Temperature 278 | 150 5 . . 66 248 278 2 48 96 160 136 192 Average Temperature 51 | 66 5 . . 23 60 40 2 18 31 78 54 47 Received Heat Transfer 1914 | . 141 . . 15 747 549 . 162 39 48 27 186 Siege Activations . | . . . . . . . . . . . . . Robots Corrupted 4 | . . . . . 4 . . . . . . . Combat Hostiles 4 | . . . . . 4 . . . . . . . Parts Fried 9 | . . . . . 9 . . . . . . . Impact Corruptions 12 | . . . . . 12 . . . . . . . Robots Melted . | . . . . . . . . . . . . . Combat Hostiles . | . . . . . . . . . . . . . Parts Melted 1 | . . . . . 1 . . . . . . . Heat Transferred 1455 | 703 . . . . 578 . . 100 . . . 74 Parts Sabotaged . | . . . . . . . . . . . . . Parts Stolen . | . . . . . . . . . . . . . Parts Stripped . | . . . . . . . . . . . . . Power Chain Reactions 9 | . . . . . 9 . . . . . . . Missiles Intercepted . | . . . . . . . . . . . . . Alert | -11 -10 -10 -10 -9 -8 -7 -7 -7 -7 -7 -7 -7 ------- Run | Scr Mat Min Exi Min Mat Fac Was Fac Low Low Zio Dee Peak Influence 2550 | 25 324 85 . 309 2550 1540 485 935 . . . . Average Influence 829 | 12 169 77 . 173 1474 1061 484 408 . . . . Maximum Alert Level 5 | . 1 . . 1 5 4 2 3 . . . . Low Security (%) 39 | 100 67 100 . 51 2 . . 39 . . . . Level 1 15 | . 32 . . 48 11 . . 17 . . . . Level 2 13 | . . . . . 9 20 100 13 . . . . Level 3 29 | . . . . . 14 17 . 29 . . . . Level 4 1 | . . . . . 12 62 . . . . . . Level 5 . | . . . . . 51 . . . . . . . High Security . | . . . . . . . . . . . . . Max Security . | . . . . . . . . . . . . . Squads Dispatched 48 | . 2 . . 1 18 17 . 9 . 1 . . Investigation 9 | . 2 . . . 4 1 . 1 . 1 . . Extermination 9 | . . . . . . 6 . 3 . . . . Reinforcement 5 | . . . . 1 2 . . 2 . . . . Assault 19 | . . . . . 12 7 . . . . . . Garrison 6 | . . . . . . 3 . 3 . . . . Intercept . | . . . . . . . . . . . . . Construction Impeded 3 | . . . . 1 1 . . 1 . . . . Haulers Reinforced 1 | . . . . . . . . 1 . . . . Stealth | -11 -10 -10 -10 -9 -8 -7 -7 -7 -7 -7 -7 -7 --------- Run | Scr Mat Min Exi Min Mat Fac Was Fac Low Low Zio Dee Distress Signals 5 | . . . . . 2 2 . 1 . . . . Communications Jammed . | . . . . . . . . . . . . . Distress Signals . | . . . . . . . . . . . . . Times Spotted 476 | . 30 . . 25 160 91 . 61 18 12 56 23 Peak Tracking Total 15 | . 6 . . 4 13 8 . 5 6 5 15 4 Tactical Retreats 51 | . 4 . . 5 21 6 . 3 1 . 7 4 Traps | -11 -10 -10 -10 -9 -8 -7 -7 -7 -7 -7 -7 -7 ------- Run | Scr Mat Min Exi Min Mat Fac Was Fac Low Low Zio Dee Traps Triggered 4 | . 1 . . . 1 1 . 1 . . . . Indirectly . | . . . . . . . . . . . . . Trap Hack Attempts . | . . . . . . . . . . . . . Triggered . | . . . . . . . . . . . . . Disarmed 7 | . . . . . . 7 . . . . . . Reprogrammed 4 | . . . . . 4 . . . . . . . Reused . | . . . . . . . . . . . . . Traps Extracted . | . . . . . . . . . . . . . Installed . | . . . . . . . . . . . . . Triggered . | . . . . . . . . . . . . . Machines | -11 -10 -10 -10 -9 -8 -7 -7 -7 -7 -7 -7 -7 ---------- Run | Scr Mat Min Exi Min Mat Fac Was Fac Low Low Zio Dee Machines Disabled 38 | . . . . 2 18 7 . 8 . 1 . 2 Max in Single Turn 4 | . . . . 1 4 1 . 3 . 1 . 1 Garrison Access 6 | . . . . . 1 2 . 3 . . . . Machines Sabotaged . | . . . . . . . . . . . . . Garrisons Compromised . | . . . . . . . . . . . . . Overloaded Fab Kills . | . . . . . . . . . . . . . Fab Network Shutdowns 2 | . . . . . . 1 . 1 . . . . Hacking | -11 -10 -10 -10 -9 -8 -7 -7 -7 -7 -7 -7 -7 --------- Run | Scr Mat Min Exi Min Mat Fac Was Fac Low Low Zio Dee Machines Accessed 94 | . 8 . 4 . 14 31 . 35 1 1 . . Terminals 58 | . 6 . . . 10 20 . 20 1 1 . . Fabricators 4 | . . . . . . 1 . 3 . . . . Repair Stations 7 | . 1 . . . 1 4 . 1 . . . . Recycling Units 9 | . 1 . . . 1 3 . 4 . . . . Scanalyzers 6 | . . . . . 2 . . 4 . . . . Garrison Access 6 | . . . . . . 3 . 3 . . . . Total Hacks 506 | . 29 . 4 . 146 146 . 169 6 6 . . Successful 396 | . 20 . 4 . 114 113 . 134 6 5 . . Failed 106 | . 8 . . . 31 32 . 34 . 1 . . Catastrophic 9 | . . . . . . 4 . 5 . . . . Database Lockouts 5 | . 1 . . . 2 1 . 1 . . . . Manual 309 | . 26 . 40 . 75 70 . 92 . 6 . . Terminals 381 | . 24 . . . 114 106 . 125 6 6 . . Fabricators 24 | . . . . . . 10 . 14 . . . . Repair Stations 17 | . 1 . . . 3 10 . 3 . . . . Recycling Units 30 | . 4 . . . 5 9 . 12 . . . . Scanalyzers 34 | . . . . . 24 . . 10 . . . . Garrison Access 16 | . . . . . . 11 . 5 . . . . Terminal Hacks 181 | . 7 . 4 . 43 56 . 60 6 5 . . Record 20 | . . . 4 . 1 4 . 4 6 1 . . Part Schematic 18 | . . . . . . 7 . 11 . . . . Robot Schematic 2 | . . . . . . . . 2 . . . . Robot Analysis 21 | . 5 . . . 2 1 . 10 . 3 . . Prototype ID Bank 24 | . . . . . 5 7 . 12 . . . . Branch Access Points 2 | . . . . . 1 1 . . . . . . Emergency Access Points 2 | . . . . . 2 . . . . . . . Machine Index 1 | . . . . . 1 . . . . . . . Terminal Index 3 | . . . . . 1 1 . 1 . . . . Fabricator Index 1 | . . . . . . . . 1 . . . . Repair Station Index 1 | . . . . . . . . 1 . . . . Scanalyzer Index 2 | . . . . . 2 . . . . . . . Garrison Index 1 | . . . . . . . . 1 . . . . Alert Level 5 | . 1 . . . 3 1 . . . . . . Unreport Threat 25 | . . . . . 5 9 . 10 . 1 . . Locate Traps 3 | . . . . . 2 . . 1 . . . . Disarm Traps 3 | . . . . . . 3 . . . . . . Reprogram Traps 2 | . . . . . 2 . . . . . . . Dispatch Records 6 | . . . . . 4 2 . . . . . . Maintenance Status 1 | . . . . . 1 . . . . . . . Security Status 2 | . . . . . 1 1 . . . . . . Patrol Status 5 | . . . . . 1 3 . 1 . . . . Investigation Status 3 | . . . . . . 2 . 1 . . . . Reinforcement Status 3 | . . . . . 1 2 . . . . . . Assault Status 2 | . . . . . 1 1 . . . . . . Recall Investigation 1 | . . . . . . 1 . . . . . . Recall Extermination 4 | . . . . . . 3 . 1 . . . . Recall Assault 3 | . . . . . . 3 . . . . . . Hauler Manifests 6 | . 1 . . . 2 2 . 1 . . . . Registered Components 3 | . . . . . 1 1 . 1 . . . . Registered Prototypes 3 | . . . . . 1 1 . 1 . . . . Zone Layout 3 | . . . . . 3 . . . . . . . Fabricator Hacks 10 | . . . . . . 6 . 4 . . . . Load Schematic 5 | . . . . . . 3 . 2 . . . . Build 5 | . . . . . . 3 . 2 . . . . Repair Station Hacks 14 | . . . . . 2 10 . 2 . . . . Scan Component 7 | . . . . . 1 5 . 1 . . . . Repair 7 | . . . . . 1 5 . 1 . . . . Recycling Unit Hacks 13 | . 1 . . . 2 3 . 7 . . . . Report Inventory 10 | . 1 . . . 2 3 . 4 . . . . Retrieve Components 3 | . . . . . . . . 3 . . . . Scanalyzer 34 | . . . . . 24 . . 10 . . . . Insert Component 16 | . . . . . 11 . . 5 . . . . Analyze 18 | . . . . . 13 . . 5 . . . . Garrison Access Hacks 5 | . . . . . . 2 . 3 . . . . Seal Access 5 | . . . . . . 2 . 3 . . . . Unauthorized Hacks 303 | . 31 . . . 91 82 . 99 . . . . Terminals 102 | . 9 . . . 36 25 . 32 . . . . Track 20 | . 2 . . . 6 4 . 8 . . . . Assimilate 8 | . . . . . 5 1 . 2 . . . . Botnet 43 | . 5 . . . 9 15 . 14 . . . . Detonate 5 | . . . . . 5 . . . . . . . Disrupt 20 | . 1 . . . 8 4 . 7 . . . . Operators 6 | . 1 . . . 3 1 . 1 . . . . Fabricators 12 | . . . . . . 3 . 9 . . . . Report 4 | . . . . . . 1 . 3 . . . . Prioritize 4 | . . . . . . 1 . 3 . . . . Siphon 4 | . . . . . . 1 . 3 . . . . Repair Stations 2 | . 1 . . . 1 . . . . . . . Mechanics 2 | . 1 . . . 1 . . . . . . . Recycling Units 15 | . 2 . . . 3 5 . 5 . . . . Monitor 1 | . . . . . 1 . . . . . . . Reject 9 | . 1 . . . 1 3 . 4 . . . . Recyclers 5 | . 1 . . . 1 2 . 1 . . . . Scanalyzers . | . . . . . . . . . . . . . Garrison Access 5 | . . . . . . 3 . 2 . . . . Intercept 3 | . . . . . . 2 . 1 . . . . Watchers 2 | . . . . . . 1 . 1 . . . . Data Cores Recovered 3 | . . . . . 1 2 . . . . . . Used 1 | . . . . . 1 . . . . . . . Hacking Detections 61 | . 7 . . . 13 17 . 22 1 1 . . Full Trace Events 5 | . . . . . 3 . . . 1 1 . . Feedback Events . | . . . . . . . . . . . . . Feedback Blocked . | . . . . . . . . . . . . . Robot Schematics Acquired 2 | . . . . . . . . 2 . . . . Robots Built . | . . . . . . . . . . . . . Matter . | . . . . . . . . . . . . . Time . | . . . . . . . . . . . . . Total Robot Build Rating . | . . . . . . . . . . . . . Part Schematics Acquired 34 | . . . . . 11 7 . 16 . . . . Parts Built 8 | . . . . . . 6 . 2 . . . . Matter 849 | . . . . . . 477 . 372 . . . . Time 142 | . . . . . . 78 . 64 . . . . Total Part Build Rating 47 | . . . . . . 36 . 11 . . . . Parts Repaired 7 | . . . . . 1 5 . 1 . . . . Time 151 | . . . . . 32 76 . 43 . . . . Parts Recycled . | . . . . . . . . . . . . . Recycled Matter . | . . . . . . . . . . . . . Retrieved Matter . | . . . . . . . . . . . . . Retrieved Components 20 | . . . . . . . . 20 . . . . Parts Scanalyzed 16 | . . . . . 11 . . 5 . . . . Part Schematics Acquired 16 | . . . . . 11 . . 5 . . . . Parts Damaged 2 | . . . . . 2 . . . . . . . Bothacking | -11 -10 -10 -10 -9 -8 -7 -7 -7 -7 -7 -7 -7 ------------ Run | Scr Mat Min Exi Min Mat Fac Was Fac Low Low Zio Dee Used RIF Installer . | . . . . . . . . . . . . . Robots Hacked . | . . . . . . . . . . . . . Non-combat . | . . . . . . . . . . . . . Combat . | . . . . . . . . . . . . . Robot Hacks Applied . | . . . . . . . . . . . . . Relay Couplers Released 1 | . . . . . 1 . . . . . . . Machine Destruction 1 | . . . . . 1 . . . . . . . Robots Rewired . | . . . . . . . . . . . . . Allies Hacked . | . . . . . . . . . . . . . Hacks Repelled . | . . . . . . . . . . . . . Allies | -11 -10 -10 -10 -9 -8 -7 -7 -7 -7 -7 -7 -7 -------- Run | Scr Mat Min Exi Min Mat Fac Was Fac Low Low Zio Dee Total Allies 9 | . . 2 . 3 1 1 . 2 . . . . Largest Group 3 | . . 2 2 3 2 1 1 3 2 2 2 2 Highest-Rated Group 62 | . . 40 40 40 42 26 26 62 52 52 52 52 Highest-Rated Ally 31 | . . 31 31 16 26 26 26 26 26 26 26 26 Total Orders 135 | . . . . 4 14 33 2 46 10 10 8 8 STAY 2 | . . . . 1 . 1 . . . . . . GOTO 71 | . . . . 1 9 16 1 25 5 5 4 5 FOLLOW 62 | . . . . 2 5 16 1 21 5 5 4 3 Ally Attacks 44 | . . . . 9 35 . . . . . . . Total Damage 519 | . . . . 128 391 . . . . . . . Kills 8 | . . . . 2 6 . . . . . . . Allies Corrupted . | . . . . . . . . . . . . . Allies Melted . | . . . . . . . . . . . . . Intel | -11 -10 -10 -10 -9 -8 -7 -7 -7 -7 -7 -7 -7 ------- Run | Scr Mat Min Exi Min Mat Fac Was Fac Low Low Zio Dee Robot Analysis Total 21 | . 5 . . . 2 1 . 10 . 3 . . Derelict Logs Recovered 7 | . . 1 . 2 . . . . 1 2 1 . Drone Launches . | . . . . . . . . . . . . . Drone Recoveries . | . . . . . . . . . . . . . Exploration | -11 -10 -10 -10 -9 -8 -7 -7 -7 -7 -7 -7 -7 ------------- Run | Scr Mat Min Exi Min Mat Fac Was Fac Low Low Zio Dee Turns Passed 17526 | 133 800 334 396 1317 3245 4280 337 2896 746 876 1044 1122 Spaces Moved 28315 | 68 906 640 990 1181 4347 6490 702 5346 1608 1763 2174 2100 Core 17 | 3 1 . . 2 . 8 3 . . . . . Treads . | . . . . . . . . . . . . . Legs . | . . . . . . . . . . . . . Wheels 168 | 65 103 . . . . . . . . . . . Hover . | . . . . . . . . . . . . . Flight 28130 | . 802 640 990 1179 4347 6482 699 5346 1608 1763 2174 2100 Fastest Speed 29 | 50 40 40 40 40 40 34 34 32 32 32 29 32 Average Speed 36 | 97 46 40 40 40 40 38 34 33 32 32 32 32 Slowest Speed 120 | 100 100 40 40 50 120 100 50 35 35 32 100 100 Overloaded Moves 16 | . . . . . . . . . . . 16 . Propulsion Burnouts . | . . . . . . . . . . . . . Robots Hopped 93 | . . . . . 11 36 . 46 . . . . Cave-ins Triggered . | . . . . . . . . . . . . . Exploration Rate (%) 88 | 5 97 99 94 99 100 95 95 97 96 99 89 90 Regions Visited 12 Branch Regions 7 Pre-discovered Areas 4 | . . . . 1 . . . . 1 . 2 . Known Exits Taken 9 | . 1 1 1 1 1 . . 1 1 1 1 . Unknown Exits Taken 1 | 1 . . . . . . . . . . . . Scrap Searched 21 | . . 1 . 2 . . . . 8 9 1 . Spaces Dug 210 | . . 3 . 24 21 98 14 31 8 3 7 1 Terrain Destroyed 1337 | . . 3 . 415 390 238 14 141 28 39 7 62 Melee 184 | . . 3 . . 20 97 14 31 8 3 7 1 Projectile 231 | . . . . 9 138 41 . 13 3 14 . 13 AOE 922 | . . . . 406 232 100 . 97 17 22 . 48 Actions | -11 -10 -10 -10 -9 -8 -7 -7 -7 -7 -7 -7 -7 --------- Run | Scr Mat Min Exi Min Mat Fac Was Fac Low Low Zio Dee Total 33647 | 106 1100 693 989 1945 5260 7778 783 6282 1797 2003 2445 2466 Wait 2987 | 4 62 42 . 650 262 725 16 629 116 125 112 244 Move 28125 | 67 905 639 989 1180 4324 6420 701 5258 1607 1762 2173 2100 Hop 85 | . . . . . 11 33 . 41 . . . . Pick Up 63 | 2 3 . . 5 25 7 . 15 . 2 2 2 Fast Attach 233 | 4 10 . . 4 22 89 26 32 2 10 22 12 Attach 28 | 1 . . . 1 7 1 . 11 . . 5 2 Detach 36 | . 2 . . . 7 11 1 7 . . 7 1 Swap 95 | 1 . . . 5 16 26 . 26 5 7 4 5 Drop 251 | 1 11 . . 7 34 81 25 44 2 13 19 14 Fire 654 | 26 . . . 63 288 100 . 37 10 34 41 55 Melee 697 | . 91 12 . 8 166 199 14 104 31 22 33 17 Ram . | . . . . . . . . . . . . . Kick . | . . . . . . . . . . . . . Crush . | . . . . . . . . . . . . . Escape Stasis 28 | . . . . . . 10 . 18 . . . . Rewire . | . . . . . . . . . . . . . Trap . | . . . . . . . . . . . . . Miscellaneous 365 | . 16 . . 22 98 76 . 60 24 28 27 14 Route ------- -11/Scrapyard -10/Materials (discovered 5 exits: *Mat x3 / *Min x2) -10/Mines (discovered 3 exits: *Mat x2 / *Exi) -10/Exiles (discovered 2 exits: *Min x2) -9/Mines (discovered 2 exits: *Mat x2) -8/Materials (discovered 3 exits: *Fac x3) -7/Factory (discovered 6 exits: *Fac x4 / *Low x2) -7/Waste -7/Factory (discovered 6 exits: *Fac x4 / *Low x2) -7/Lower Caves -7/Lower Caves (discovered 2 exits: *Fac / *Zio) -7/Zion (discovered 2 exits: *Dee / *Pro) -7/Deep Caves (discovered 1 exit: *Pro) History --------- Turn | Location | Event 12 | -11/Scrapyard | Discovered new exit (range 17) 134 | -11/Scrapyard | Entered Materials 208 | -10/Materials | Discovered new exit (range 13) 312 | -10/Materials | Build established: Hacker-Mutant 426 | -10/Materials | Discovered new exit (range 17) 457 | -10/Materials | Core integrity fell below 50% 478 | -10/Materials | Core integrity fell below 20% 542 | -10/Materials | Discovered new exit (range 17) 589 | -10/Materials | Discovered new exit (range 18) 751 | -10/Materials | Central database locked down 764 | -10/Materials | Reached level 2 816 | -10/Materials | Discovered new exit (range 5) 820 | -10/Materials | Identified exit to Materials 910 | -10/Materials | Identified exit to Mines 934 | -10/Materials | Entered Mines 1032 | -10/Mines | Learned Materials stockpile data 1037 | -10/Mines | Discovered exit to Materials (range 11) 1066 | -10/Mines | Discovered exit to Materials (range 7) 1098 | -10/Mines | Build established: Hacker-Scout 1173 | -10/Mines | Deemed a non-threat by the Exiles lab entrance 1174 | -10/Mines | Discovered new exit (range 5) 1175 | -10/Mines | Identified exit to Exiles 1268 | -10/Mines | Entered Exiles 1268 | -10/Exiles | Found Exiles lab abandoned 1268 | -10/Exiles | Accompanied by 2 allies 1274 | -10/Exiles | Discovered new exit (range 16) 1298 | -10/Exiles | Led the pair of lost Derelicts to a safe place 1396 | -10/Exiles | Discovered new exit (range 10) 1399 | -10/Exiles | Identified exit to Mines 1664 | -10/Exiles | Entered Mines 1666 | -9/Mines | Assembled infested the area 1818 | -9/Mines | Learned 4 Materials zone layouts 1934 | -9/Mines | Discovered new exit (range 9) 1937 | -9/Mines | Identified exit to Materials 1968 | -9/Mines | Discovered exit to Materials (range 10) 2003 | -9/Mines | A weapon hastily lodged in a ceiling crevice suddenly fell to the ground 2093 | -9/Mines | Reached level 3 2095 | -9/Mines | Upgraded with Utility slot (x1) 2228 | -9/Mines | Assisted by bots powering up and referring to "LRC-V3" 2316 | -9/Mines | Joined a pair of Derelicts in attacking an 0b10 outpost 2981 | -9/Mines | Entered Materials 2981 | -8/Materials | Accompanied by 2 allies 2982 | -8/Materials | Identified exit to Factory 2983 | -8/Materials | Reached level 4 2999 | -8/Materials | Reached level 5 3001 | -8/Materials | Upgraded with Utility slot (x1) 3001 | -8/Materials | Upgraded with Weapon slot (x1) 3076 | -8/Materials | Central database locked down 3112 | -8/Materials | Repaired Mni. Grenade Launcher 3251 | -8/Materials | Discovered exit to Factory (range 19) 3366 | -8/Materials | Reached level 6 3376 | -8/Materials | Upgraded with Utility slot (x1) 3624 | -8/Materials | Reached level 7 3639 | -8/Materials | Upgraded with Utility slot (x1) 3781 | -8/Materials | First assault squad dispatched 3854 | -8/Materials | Reached level 8 3856 | -8/Materials | Upgraded with Utility slot (x1) 4213 | -8/Materials | Reached level 9 4284 | -8/Materials | Reached level 10 4286 | -8/Materials | Upgraded with Utility slot (x1) 4905 | -8/Materials | Reached level 11 5146 | -8/Materials | Reached level 12 5216 | -8/Materials | Destroyed 9 combat bots 5256 | -8/Materials | Upgraded with Utility slot (x1) 5266 | -8/Materials | Discovered exit to Factory (range 24) 5982 | -8/Materials | Reached level 13 5984 | -8/Materials | Upgraded with Weapon slot (x1) 6226 | -8/Materials | Entered Factory 6228 | -7/Factory | Reached level 14 6280 | -7/Factory | Discovered new exit (range 21) 6371 | -7/Factory | Identified exit to Factory 6624 | -7/Factory | Discovered exit to Factory (range 23) 6626 | -7/Factory | First assault squad dispatched 6917 | -7/Factory | Reached level 15 6920 | -7/Factory | Upgraded with Propulsion slot (x1) 7246 | -7/Factory | Build established: Wizard-Scout 7526 | -7/Factory | Core integrity fell below 50% 7720 | -7/Factory | Repaired Cesium-ion Thruster 7761 | -7/Factory | Discovered exit to Factory (range 11) 8508 | -7/Factory | Reached level 16 8915 | -7/Factory | Discovered new exit (range 11) 8936 | -7/Factory | Identified exit to Lower Caves 8968 | -7/Factory | Repaired Maneuvering Thrusters 9031 | -7/Factory | Central database locked down 9246 | -7/Factory | Fabricated Lance (x2) 9250 | -7/Factory | Upgraded with Weapon slot (x1) 9276 | -7/Factory | Fabricated Lance (x2) 9337 | -7/Factory | Fabricated System Restoration Module (x2) 9535 | -7/Factory | Repaired Mic. Nuclear Core 9549 | -7/Factory | Repaired Missile Launcher 9638 | -7/Factory | Local fabrication network quarantined 9677 | -7/Factory | Garrison activated, responded to threat 9954 | -7/Factory | Discovered exit to Factory (range 5) 10325 | -7/Factory | Repaired Cesium-ion Thruster 10506 | -7/Factory | Sucked down chute 10506 | -7/Factory | Entered Waste 10506 | -7/Waste | The area was eerily silent 10510 | -7/Waste | 1 allies followed down the chute 10639 | -7/Waste | Found Broken Quantum Capacitor 10647 | -7/Waste | Found Damper Plating 10702 | -7/Waste | Discovered new exit (range 17) 10723 | -7/Waste | Identified exit to Factory 10843 | -7/Waste | Entered Factory 10843 | -7/Factory | Accompanied by 1 ally 10970 | -7/Factory | Discovered exit to Lower Caves (range 12) 11120 | -7/Factory | Reached level 17 11283 | -7/Factory | Found Rocket Array 11488 | -7/Factory | Repaired Broken Nanoactuators 11894 | -7/Factory | Fabricated Exp. Signal Interpreter (x1) 11915 | -7/Factory | Discovered exit to Factory (range 17) 12057 | -7/Factory | Discovered exit to Lower Caves (range 6) 12225 | -7/Factory | Garrison activated, responded to threat 12861 | -7/Factory | Local fabrication network quarantined 12874 | -7/Factory | Fabricated Adv. Hacking Suite (x1) 12965 | -7/Factory | Discovered exit to Factory (range 11) 13177 | -7/Factory | Discovered exit to Factory (range 4) 13317 | -7/Factory | Reached level 18 13319 | -7/Factory | Upgraded with Weapon slot (x1) 13438 | -7/Factory | Discovered exit to Factory (range 18) 13672 | -7/Factory | Central database locked down 13739 | -7/Factory | Entered Lower Caves 13739 | -7/Lower Caves | Accompanied by 2 allies 13819 | -7/Lower Caves | Learned Factory terminal intel 13854 | -7/Lower Caves | Spotted B-75 Beast 13967 | -7/Lower Caves | Destroyed B-75 Beast 14038 | -7/Lower Caves | Attracted the attention of an 0b10 base 14094 | -7/Lower Caves | Learned Factory trap positions 14094 | -7/Lower Caves | Learned Armory emergency access door positions 14243 | -7/Lower Caves | Encountered a Warlord checkpoint 14251 | -7/Lower Caves | Discovered new exit (range 10) 14254 | -7/Lower Caves | Identified exit to Lower Caves 14485 | -7/Lower Caves | Entered another Lower Caves area 14485 | -7/Lower Caves | Accompanied by 2 allies 14533 | -7/Lower Caves | Discovered exit to Factory (range 11) 14814 | -7/Lower Caves | Identified exit to Zion 14956 | -7/Lower Caves | Acquired the password to a Derelict Tinkerer's latest research 14981 | -7/Lower Caves | Found Prototype Special Weapon 14981 | -7/Lower Caves | Identified Molecular Deconstructor 14988 | -7/Lower Caves | Spotted B-75 Beast 15036 | -7/Lower Caves | Destroyed B-75 Beast 15115 | -7/Lower Caves | Caught by Unaware searching for contraband prototypes 15133 | -7/Lower Caves | Caught by Unaware searching for contraband prototypes 15325 | -7/Lower Caves | Learned Factory garrison access intel 15361 | -7/Lower Caves | Entered Zion 15361 | -7/Zion | Accompanied by 2 allies 15383 | -7/Zion | Discovered new exit (range 15) 15387 | -7/Zion | Identified exit to Proximity Caves 15424 | -7/Zion | Learned location of Quarantine (-2) 15579 | -7/Zion | Learned location of Warlord (-4) 15659 | -7/Zion | Discovered new exit (range 5) 15659 | -7/Zion | Saw the warning signs outside the Deep Caves entrance 15660 | -7/Zion | Identified exit to Deep Caves 15913 | -7/Zion | Attacked by Zionites 15918 | -7/Zion | Destroyed Imprinter 15920 | -7/Zion | Extracted access codes from Imprinter's data core 16240 | -7/Zion | 1C-UTU came to Zion's defense 16319 | -7/Zion | Destroyed 1C-UTU 16405 | -7/Zion | Entered Deep Caves 16405 | -7/Deep Caves | Accompanied by 2 allies 16516 | -7/Deep Caves | Z-Facility disabled 16761 | -7/Deep Caves | Found Prototype Protection 16761 | -7/Deep Caves | Identified Zio. Weapon Casing 16971 | -7/Deep Caves | Core integrity fell below 20% 17150 | -7/Deep Caves | Discovered new exit (range 17) 17154 | -7/Deep Caves | Identified exit to Proximity Caves 17380 | -7/Deep Caves | Spotted as-66532 17430 | -7/Deep Caves | Spotted as-53637 17527 | -7/Deep Caves | Destroyed by as-53637 with Assembled Focal Cannon Last Messages --------------- 16986_ Acquired Molecular Deconstructor. 16989_ Wall destabilizing. 17088_ J7-BB6(z) destroyed. 17095_ Used Protomatter to restore core integrity (+135, depleted) 17126_ QC-PC6(z) destroyed. 17128_ Acquired 64 matter. 17145_ Dropped Lance. 17146_ Acquired Prototype Energy Gun. 17146_ Identified Zio. Laser-S. 17150_ EXIT=FOUND 17154_ EXIT=IDENTIFIED: PROXIMITY CAVES 17199_ as-61710 destroyed. 17224_ Acquired 21 matter. 17405_ Dropped Greatsword. 17406_ Acquired Greatsword. 17422_ Sneak attack on NF-L1H(s). 17422_ NF-L1H(s) destroyed. 17427_ Used Protomatter to restore core integrity (+87, depleted) 17436_ as-53637: "DSI9AT1D G8OHIBQ29FWG 26R186 QD12WHW8W33 TDK1 81FTS" [Achievement: 20k Club] Map ----- +----------------------------------------------------+ | | | | | | | | | | | | | | | | | | | | | | | | | | | | | | | | | | | | | | | | | | | | | ?????????????????????????????????????????????????? | | ???????????????######??????######????????????????? | | ?????????????### ######## #####????????????? | | ????????????## @ ###??????????? | | ????????????# ##?????????? | | ????????????# ## #?????????? | | ????????????# #?# #?????????? | | # ?###??????## #??## ##?????????? | | # ?# #???????## #???## " #?#######??? | | ?# #???????## ###### """ #?# #??? | | ?# #??????## ## "" # ##?# #??? | | ## #?????## ### # #??# # #### | | # ####### ##?## ### #### # | | ?# ##???### aa | | #??# ######?## | | #???# #??## ###### | | "##???## #### #???## ###G ##??## | | #????###??# #????## ### ##??## | | ##"##????????# ####### #" ##??# ### | | ### #????????# #### #?? | | ### ####?????# ## #?? | | " #?????## ######## # #?? | | ####???### ##??????###### ### #?? | | ###??## ##????????????## ##?# #?? | | #??# ##?????????????## #??# #?? | | = ###??# #####??????????## #??# ##? | | =[ ##???## ##??????????## #??# ## | | = #????## ##??????????# #??# # | +----------------------------------------------------+ Best States ------------- Heat Dissipation 25 Energy Generation 20 Energy Capacity 1150 Matter Stores 331 Matter Capacity 350 Sight Range 24 Robot Scan Range 20 Terrain Scan Density 85 Armor Coverage 225 Resistance: KI 5 Resistance: TH 15 Resistance: EX 10 Melee Speed Boost 30 Evasion (%) 73 Targeting Accuracy 8 Melee Accuracy 12 Core Analysis 6 Armor Integrity Analysis 33 Offensive Hacking 45 Defensive Hacking 31 Item Schematics ----------------- Remote Datajack | -8/Materials | Scanalyzed Mni. Grenade Launcher | -8/Materials | Scanalyzed Bore Cannon | -8/Materials | Scanalyzed Adv. Sensor Array | -8/Materials | Scanalyzed Enh. Autogun | -8/Materials | Scanalyzed Melee Analysis Suite | -8/Materials | Scanalyzed Hrd. Medium Armor Plating | -8/Materials | Scanalyzed Cesium-ion Thruster | -8/Materials | Scanalyzed System Shield | -8/Materials | Scanalyzed Enh. Optical Array | -8/Materials | Scanalyzed Adv. Signal Interpreter | -8/Materials | Scanalyzed Adv. Melee Analysis Suite | -7/Factory | Hacked Imp. Maneuvering Thrusters | -7/Factory | Hacked Lance | -7/Factory | Hacked Imp. Carbon-fiber Leg | -7/Factory | Hacked System Restoration Module | -7/Factory | Hacked Imp. Armor Integrity Analyzer | -7/Factory | Hacked Adv. ECM Suite | -7/Factory | Hacked Nanoactuators | -7/Factory | Scanalyzed Exp. Signal Interpreter | -7/Factory | Hacked Force Field | -7/Factory | Hacked Missile Launcher | -7/Factory | Scanalyzed Neutron Cannon | -7/Factory | Hacked Imp. Thermal Shield | -7/Factory | Hacked Cmb. Gravmag System | -7/Factory | Hacked Hvy. Laser | -7/Factory | Hacked Microactuators | -7/Factory | Hacked Hvy. Missile Launcher | -7/Factory | Scanalyzed Focal Shield | -7/Factory | Hacked Adv. Plasma Cannon | -7/Factory | Hacked Adv. Reclamation Unit | -7/Factory | Hacked Adv. Hacking Suite | -7/Factory | Hacked Imp. Cesium-ion Thruster | -7/Factory | Scanalyzed Cld. VTOL Module | -7/Factory | Scanalyzed Robot Schematics ------------------ L-41 Fighter | -7/Factory | Hacked M-14 Sweeper | -7/Factory | Hacked Fabricated ------------ Lance | x2 | -7/Factory Lance | x2 | -7/Factory System Restoration Module | x2 | -7/Factory Exp. Signal Interpreter | x1 | -7/Factory Adv. Hacking Suite | x1 | -7/Factory Alien Tech Used ----------------- None Achievements -------------- 20k Club Ambidextrous Assassin Deconstruction Monster Safety First Signs Are For Wimps Challenges ------------ None RPGLIKE | -11 -10 -10 -10 -9 -8 -7 -7 -7 -7 -7 -7 -7 --------- Run | Scr Mat Min Exi Min Mat Fac Was Fac Low Low Zio Dee Levels Raised 17 | . 1 . . 1 10 3 . 2 . . . . XP Earned 29496 | 3000 1575 500 200 2183 13634 5538 67 1833 367 327 105 167 XP Spent 28350 | 2925 1560 . . 1465 14350 5150 . 2400 . . 500 . Upgrades 57 | 15 6 . . 6 16 10 . 2 . . 2 . Propulsion Slot 1 | . . . . . . 1 . . . . . . Utility Slot 7 | . . . . 1 6 . . . . . . . Weapon Slot 4 | . . . . . 2 1 . 1 . . . . Core Integrity 5 | . 2 . . 3 . . . . . . . . Energy Generation 1 | . . . . . . . . . . . 1 . Matter Storage 1 | . . . . . . . . . . . 1 . Mass Support 4 | 1 1 . . 1 1 . . . . . . . Inventory Capacity 4 | 1 . . . 1 . 1 . 1 . . . . Sight Range 2 | 2 . . . . . . . . . . . . Sensor Range 10 | 7 . . . . 3 . . . . . . . Ranged Accuracy 2 | . . . . . 2 . . . . . . . Melee Accuracy 5 | . 2 . . . . 3 . . . . . . Hack Attack % 4 | 2 . . . . 1 1 . . . . . . Hack Defense % 4 | 2 1 . . . 1 . . . . . . . KI Resistance % 1 | . . . . . . 1 . . . . . . EX Resistance % 2 | . . . . . . 2 . . . . . . Protomatter Created 4187 | . 117 . . 143 1498 865 . 836 171 277 190 90 Integrity Restored 7231 | . 351 . . 430 1985 1620 . 927 510 577 561 270 Core 6482 | . 351 . . 416 1718 1546 . 737 439 547 458 270 Parts 749 | . . . . 14 267 74 . 190 71 30 103 . Protomatter Decayed 2126 | . . . . 126 791 347 197 489 . 176 . . Game ------ Seed FortressTrapFacilitator Manual? 0 Play Time 11:27:18 Cumulative 100.4 hours Start 2020.01.01 @ 15:16:09 End 2020.01.05 @ 16:43:51 Sessions 13 Manual Loads 0 Difficulty Rogue Special Mode Winter2019/RPGLIKE Game No. 19 Rogue 19 Adventurer 0 Explorer 0 Win Type - Total 1 Types 1/0/0/0/0/0/0 Lore% 40 Gallery% 44 Achievement% 34 Wizard Run 0 Options --------- ASCII 0 Keyboard 1 Movement Numpad Keybinds 0 Fullscreen 2 Font 18/SmallcapsGlow Map View 76x50 Tactical HUD 1 Map Filters NONE Filters NONE Steam 1 RUN: 275e6eca-fb5b-4f35-9b6e-89c087e5416a